bitfinex/quotes_SOLUSD_20250209
["timestamp","ask_amount","ask_price","bid_price","bid_amount"]
[1739063377737,0.03,200.86,200.85,142.94591744]
[1739063378302,0.03,200.86,200.85,147.92471744]
[1739063378825,0.03,200.86,200.85,152.18009634]
[1739063381510,0.03,200.86,200.85,153.43107634]
[1739063381710,0.03,200.86,200.85,152.43107634]
[1739063381910,0.03,200.86,200.85,152.18009634]
[1739063383233,0.03,200.86,200.85,152.43107634]
[1739063383622,0.03,200.86,200.85,152.18009634]
[1739063384035,0.03,200.86,200.85,135.3]
[1739063386328,18.49449634,200.86,200.84,83.0]
[1739063386633,13.41184853,200.85,200.84,83.0]
[1739063386830,25.31314487,200.85,200.79,218.8]
[1739063387128,11.90129634,200.82,200.79,218.8]
[1739063389129,30.29254487,200.83,200.79,218.8]
[1739063389313,13.41184853,200.83,200.79,218.8]
[1739063394346,13.41184853,200.83,200.79,218.863]
[1739063394547,23.47319634,200.86,200.8,11.90129634]
[1739063394844,0.03,200.83,200.8,11.90129634]
[1739063395341,0.03,200.83,200.79,218.863]
[1739063396243,0.03,200.83,200.79,230.76429634]
[1739063396447,0.03,200.83,200.79,235.74459634]
[1739063397350,0.03,200.83,200.79,230.76429634]
[1739063398655,0.03,200.83,200.79,226.48733151]
[1739063399974,0.03,200.83,200.8,7.62433151]
[1739063401541,0.03,200.83,200.82,7.62433151]
[1739063401936,0.03,200.83,200.82,144.17112994]
[1739063402140,0.03,200.83,200.82,143.42433151]
[1739063404262,0.03,200.83,200.82,231.40383151]
[1739063407034,0.03,200.83,200.82,231.46683151]
[1739063407241,0.03,200.83,200.82,227.49610225]
[1739063408743,0.03,200.83,200.82,223.8425]
[1739063412562,0.03,200.83,200.82,231.46683151]
[1739063413472,0.03,200.83,200.82,235.12046013]
[1739063415080,13.74753151,200.91,200.82,235.12046013]
[1739063415376,13.74753151,200.91,200.84,7.62433151]
[1739063415550,7.62433151,200.89,200.83,0.74662537]
[1739063416049,7.62433151,200.9,200.83,8.37095688]
[1739063416852,13.74753151,200.91,200.83,8.37095688]
[1739063417258,13.74753151,200.91,200.84,12.60333151]
[1739063418078,13.74753151,200.91,200.85,3.65467736]
[1739063419770,13.74753151,200.91,200.85,144.43337736]
[1739063421478,13.74753151,200.91,200.85,139.45467736]
[1739063421680,7.62433151,200.88,200.85,139.45467736]
[1739063421978,7.62433151,200.87,200.86,3.65467736]
[1739063422766,21.16167004,200.87,200.86,3.65467736]
[1739063422969,21.28716004,200.87,200.86,3.65467736]
[1739063423175,13.41184853,200.84,200.82,0.063]
[1739063423377,7.62433151,200.83,200.82,0.063]
[1739063424179,32.72077004,200.83,200.82,0.063]
[1739063424395,32.84626004,200.83,200.82,0.063]
[1739063424671,34.06261396,200.83,200.82,0.063]
[1739063424884,35.06261396,200.83,200.82,0.063]
[1739063425371,35.06261396,200.83,200.79,0.063]
[1739063425372,20.12549,200.8,200.79,0.063]
[1739063425672,72.78448608,200.8,200.79,0.063]
[1739063425879,0.12549,200.78,200.72,135.8]
[1739063426079,7.62433151,200.73,200.67,218.8]
[1739063426251,7.62433151,200.72,200.67,218.8]
[1739063426451,7.62433151,200.71,200.67,218.8]
[1739063427480,21.03618004,200.76,200.69,7.62433151]
[1739063427786,7.62433151,200.79,200.72,12.60613151]
[1739063427957,7.62433151,200.77,200.72,135.8]
[1739063429670,7.62433151,200.79,200.72,148.40633151]
[1739063429899,29.28193151,200.8,200.73,8.37145383]
[1739063430400,7.62433151,200.84,200.77,7.62433151]
[1739063430696,7.62433151,200.84,200.77,147.7150684]
[1739063430697,13.41184853,200.82,200.77,147.7150684]
[1739063431195,0.12549,200.87,200.8,11.9150684]
[1739063431196,11.9150684,200.87,200.8,11.9150684]
[1739063431558,25.32691693,200.86,200.79,11.9150684]
[1739063431792,25.32691693,200.86,200.79,16.8953684]
[1739063432603,18.4948684,200.88,200.81,11.9150684]
[1739063432890,11.9150684,200.87,200.81,135.8]
[1739063434488,11.9150684,200.87,200.81,140.7796]
[1739063435263,11.9150684,200.86,200.81,140.7796]
[1739063436370,18.4948684,200.88,200.81,140.7796]
[1739063437499,18.4948684,200.88,200.81,223.7796]
[1739063437986,11.9150684,200.87,200.81,223.7796]
[1739063438799,18.4948684,200.88,200.81,223.7796]
[1739063439603,18.4948684,200.88,200.81,235.6946684]
[1739063439972,11.9150684,200.89,200.81,235.6946684]
[1739063440301,11.9150684,200.87,200.81,223.7796]
[1739063440901,11.9150684,200.88,200.81,235.6946684]
[1739063441398,11.9150684,200.87,200.81,223.7796]
[1739063442098,13.41184853,200.86,200.81,223.7796]
[1739063442279,11.9150684,200.87,200.81,218.8]
[1739063442280,11.9150684,200.84,200.81,218.8]
[1739063443371,11.9150684,200.82,200.77,135.8]
[1739063443568,11.9150684,200.8,200.77,135.8]
[1739063444198,13.41184853,200.84,200.77,135.8]
[1739063444199,11.9150684,200.85,200.77,152.6957684]
[1739063444401,11.9150684,200.86,200.79,11.9150684]
[1739063445409,11.9150684,200.86,200.8,4.98]
[1739063446812,13.41184853,200.86,200.8,16.8950684]
[1739063449311,13.41184853,200.86,200.8,152.6950684]
[1739063451283,13.41184853,200.86,200.81,11.9150684]
[1739063451489,13.41184853,200.86,200.81,16.8947684]
[1739063452610,13.41184853,200.86,200.81,4.9797]
[1739063454408,12.63152487,200.87,200.81,4.9797]
[1739063454618,0.03,200.87,200.81,148.40292487]
[1739063455101,13.44184853,200.87,200.81,148.40292487]
[1739063455298,13.44184853,200.87,200.81,140.7797]
[1739063455505,7.65322487,200.86,200.81,140.7797]
[1739063456201,0.03,200.86,200.81,140.7797]
[1739063459215,0.03,200.86,200.81,148.40292487]
[1739063460432,7.65322487,200.86,200.81,135.8]
[1739063461219,7.62322487,200.85,200.81,135.8]
[1739063462519,0.03,200.86,200.81,135.8]
[1739063462720,7.65322487,200.86,200.81,135.8]
[1739063463620,0.03,200.86,200.81,135.8]
[1739063465839,0.03,200.86,200.81,231.40292487]
[1739063466126,0.03,200.86,200.85,7.62322487]
[1739063467414,0.03,200.86,200.85,143.42322487]
[1739063467819,0.03,200.86,200.85,143.54871487]
[1739063468026,0.03,200.86,200.85,148.52751487]
[1739063469219,0.03,200.87,200.86,0.12549]
[1739063469424,0.03,200.87,200.86,227.29513972]
[1739063469716,0.03,200.87,200.86,226.54871487]
[1739063470324,0.03,200.87,200.86,231.52721487]
[1739063473223,0.03,200.87,200.86,231.40172487]
[1739063473416,0.03,200.87,200.86,218.8]
[1739063477711,0.03,200.87,200.84,135.8]
[1739063483335,0.03,200.87,200.86,7.62322487]
[1739063483648,0.03,200.87,200.86,226.42322487]
[1739063484427,0.03,200.87,200.86,231.40172487]
[1739063489742,0.03,200.87,200.86,231.52721487]
[1739063497160,0.03,200.87,200.86,231.65270487]
[1739063497849,0.03,200.87,200.86,232.62270487]
[1739063497850,0.0001,200.87,200.86,232.62270487]
[1739063498042,0.0001,200.87,200.86,246.0345534]
[1739063498433,0.0001,200.87,200.86,231.52721487]
[1739063499350,0.0001,200.87,200.86,231.40172487]
[1739063499654,0.0001,200.87,200.86,218.8]
[1739063500030,0.0001,200.87,200.84,135.8]
[1739063500643,7.62322487,200.86,200.84,135.8]
[1739063500870,0.0001,200.87,200.84,135.8]
[1739063501054,7.62322487,200.86,200.81,135.8]
[1739063501357,0.0001,200.87,200.81,135.8]
[1739063501358,7.62322487,200.82,200.81,135.8]
[1739063502154,7.62322487,200.82,200.79,0.063]
[1739063502463,7.62322487,200.8,200.79,0.063]
[1739063502653,11.9225898,200.8,200.79,0.063]
[1739063502956,46.17564503,200.8,200.79,0.063]
[1739063503440,46.30113503,200.8,200.79,0.063]
[1739063503645,46.30113503,200.8,200.72,0.063]
[1739063503646,20.0,200.77,200.72,0.063]
[1739063503835,25.33443833,200.73,200.72,0.063]
[1739063504153,30.31623833,200.73,200.72,0.063]
[1739063505043,25.33443833,200.73,200.72,0.063]
[1739063514766,11.9225898,200.73,200.72,0.063]
[1739063520667,11.9225898,200.73,200.72,135.863]
[1739063521387,11.9225898,200.76,200.72,135.863]
[1739063521566,11.9225898,200.78,200.73,0.74711682]
[1739063522681,11.9225898,200.77,200.72,218.863]
[1739063522978,11.9225898,200.73,200.72,218.863]
[1739063523877,11.9225898,200.73,200.72,223.845]
[1739063524554,11.9225898,200.74,200.72,223.845]
[1739063525074,11.9225898,200.75,200.72,223.845]
[1739063526480,11.9225898,200.73,200.72,0.063]
[1739063530080,11.9225898,200.74,200.72,0.063]
[1739063530283,11.9225898,200.73,200.72,0.063]
[1739063530657,25.33443833,200.73,200.72,0.063]
[1739063532483,30.31623833,200.73,200.72,0.063]
[1739063532862,36.70241833,200.73,200.72,0.063]
[1739063535200,31.46963833,200.73,200.72,0.063]
[1739063536664,27.18053503,200.73,200.72,0.063]
[1739063536865,32.41331503,200.73,200.72,0.063]
[1739063537070,49.13894328,200.73,200.65,135.8]
[1739063537363,13.41184853,200.69,200.65,135.8]
[1739063537978,7.6334865,200.66,200.65,135.8]
[1739063538182,7.6334865,200.66,200.64,0.063]
[1739063538491,7.6334865,200.65,200.64,0.063]
[1739063540296,7.6334865,200.7,200.64,0.81040579]
[1739063540600,7.6334865,200.69,200.64,0.81040579]
[1739063540784,7.6334865,200.69,200.64,219.61040579]
[1739063540970,15.72562825,200.78,200.65,0.12549]
[1739063540971,7.6334865,200.71,200.65,0.12549]
[1739063541269,7.6334865,200.71,200.66,0.74725658]
[1739063542667,11.92751097,200.71,200.67,4.9833]
[1739063543189,11.92751097,200.68,200.67,4.9833]
[1739063543384,11.92751097,200.68,200.67,223.7833]
[1739063544902,11.92751097,200.68,200.67,218.8]
[1739063545064,13.41184853,200.67,200.64,135.863]
[1739063545269,13.41184853,200.67,200.64,0.063]
[1739063545270,25.5903395,200.65,200.64,0.063]
[1739063545470,13.41184853,200.64,200.61,0.063]
[1739063545692,13.41184853,200.61,200.58,0.063]
[1739063546080,0.25098,200.58,200.54,135.863]
[1739063546401,11.92751097,200.55,200.54,0.063]
[1739063547107,25.5903395,200.55,200.54,0.063]
[1739063550179,11.92751097,200.55,200.54,0.063]
[1739063550777,12.17849097,200.55,200.54,0.063]
[1739063552981,30.5765395,200.55,200.54,0.063]
[1739063553901,11.92751097,200.55,200.54,0.063]
[1739063556206,11.92751097,200.55,200.54,140.8495]
[1739063556415,11.92751097,200.56,200.54,140.8495]
[1739063556708,11.92751097,200.59,200.55,0.74784404]
[1739063556912,11.92751097,200.59,200.55,136.54784404]
[1739063557085,11.92751097,200.62,200.55,147.72751097]
[1739063557882,11.92751097,200.61,200.55,135.8]
[1739063558311,11.92751097,200.61,200.56,0.74764047]
[1739063558911,11.92751097,200.61,200.57,4.9857]
[1739063559123,5.23378,200.69,200.57,4.9857]
[1739063559325,11.92751097,200.67,200.59,12.05300097]
[1739063559486,11.92751097,200.67,200.6,32.67490024]
[1739063559916,11.92751097,200.67,200.6,20.74738927]
[1739063560113,11.92751097,200.66,200.6,20.74738927]
[1739063561113,11.92751097,200.66,200.61,4.9847]
[1739063561311,11.92751097,200.64,200.61,4.9847]
[1739063561491,11.92751097,200.64,200.61,140.7847]
[1739063561693,11.92751097,200.63,200.61,140.7847]
[1739063562513,11.92751097,200.62,200.61,140.7847]
[1739063563710,11.92751097,200.63,200.61,140.7847]
[1739063565217,11.92751097,200.63,200.61,223.7847]
[1739063565599,11.92751097,200.65,200.62,0.7475536]
[1739063565808,0.03,200.66,200.63,1.5341]
[1739063566105,0.0001,200.66,200.65,31.92751097]
[1739063566304,0.0001,200.66,200.65,20.0]
[1739063567412,0.0001,200.66,200.65,243.90929]
[1739063567596,0.0001,200.66,200.65,255.96229097]
[1739063567794,0.0001,200.66,200.65,270.3441395]
[1739063568100,0.0001,200.66,200.65,274.1241395]
[1739063568312,0.03,200.73,200.65,274.1241395]
[1739063568313,0.03,200.73,200.69,20.0]
[1739063568518,0.03,200.79,200.73,0.12549]
[1739063568694,0.03,200.79,200.74,0.74690805]
[1739063568889,0.03,200.79,200.74,231.47441902]
[1739063569106,0.03,200.79,200.74,230.72751097]
[1739063569392,0.03,200.79,200.75,17.4346]
[1739063569588,0.03,200.79,200.76,0.74687909]
[1739063570009,0.03,200.79,200.76,219.54687909]
[1739063570232,0.03,200.79,200.77,0.74681926]
[1739063571220,11.95751097,200.79,200.78,4.9805]
[1739063571403,11.95751097,200.79,200.78,140.7805]
[1739063572728,0.03,200.79,200.78,140.7805]
[1739063573412,0.0001,200.79,200.78,140.90599]
[1739063574916,0.0001,200.79,200.78,223.90599]
[1739063576719,0.0001,200.79,200.78,224.03148]
[1739063576895,0.0001,200.79,200.78,257.51014637]
[1739063580710,0.0001,200.87,200.82,21.09549]
[1739063580930,0.0001,200.87,200.85,20.0]
[1739063581101,0.0001,200.87,200.86,0.74652492]
[1739063581309,0.0001,200.87,200.86,219.54642492]
[1739063581502,0.0001,200.87,200.86,219.05088]
[1739063582629,0.0001,200.87,200.86,224.02938]
[1739063586620,0.0001,200.87,200.86,256.50804637]
[1739063586826,0.0001,200.87,200.86,257.47804637]
[1739063587444,0.03,200.91,200.9,0.25098]
[1739063587445,0.0001,200.91,200.9,0.25098]
[1739063587737,0.0001,200.92,200.91,0.12549]
[1739063588723,0.0001,200.92,200.91,224.02818]
[1739063589648,0.0001,200.94,200.93,20.0]
[1739063589945,19.06681784,201.01,200.94,20.25098]
[1739063590121,19.06681784,201.03,200.95,19.81293557]
[1739063590321,19.06681784,201.01,200.96,0.12549]
[1739063590632,19.06681784,201.02,200.99,24.9753]
[1739063590812,19.06681784,201.02,200.99,244.52122905]
[1739063591014,19.09681784,201.0,200.99,243.7752]
[1739063591816,0.03,201.0,200.99,243.7752]
[1739063592148,19.09681784,201.0,200.99,223.7752]
[1739063592442,19.09681784,201.0,200.95,12.4403]
[1739063592443,38.16363568,201.0,200.95,218.7999]
[1739063592642,11.90041948,200.96,200.95,218.7999]
[1739063593012,11.90041948,200.96,200.95,83.0]
[1739063593213,11.90041948,200.96,200.95,135.8]
[1739063593449,11.90041948,200.96,200.89,4.9777]
[1739063593450,25.31226801,200.96,200.89,140.7777]
[1739063593635,11.90041948,200.9,200.89,135.8]
[1739063594739,19.05009863,200.9,200.89,135.8]
[1739063595331,19.05009863,200.91,200.89,135.8]
[1739063595526,19.05009863,200.92,200.86,0.12549]
[1739063595824,19.05009863,200.92,200.87,0.74647256]
[1739063596144,19.05009863,200.91,200.87,0.74647256]
[1739063596341,19.05009863,200.92,200.87,0.74647256]
[1739063596715,19.05009863,200.92,200.88,4.978]
[1739063597332,19.05009863,200.91,200.88,4.978]
[1739063598248,0.03,200.9,200.88,4.978]
[1739063599445,0.03,200.9,200.88,5.7245276]
[1739063600842,0.03,200.9,200.88,224.5245276]
[1739063601034,0.03,200.9,200.88,223.778]
[1739063602155,19.05009863,200.96,200.91,20.0]
[1739063602328,19.05009863,200.98,200.92,0.74631764]
[1739063602534,19.05009863,200.99,200.92,19.79641627]
[1739063602853,19.08009863,201.0,200.93,19.17558863]
[1739063603022,19.08009863,201.0,200.94,0.74617684]
[1739063603626,19.05009863,200.99,200.95,4.9763]
[1739063605855,19.05009863,200.99,200.95,18.16341045]
[1739063606859,19.05009863,200.99,200.95,236.96341045]
[1739063607052,19.05009863,200.99,200.95,236.2172]
[1739063607261,19.05009863,200.99,200.97,4.9758]
[1739063607452,19.05009863,200.99,200.97,140.7758]
[1739063608569,19.05009863,200.98,200.97,135.8]
[1739063608735,19.05009863,200.98,200.92,4.9771]
[1739063609060,19.05009863,200.93,200.92,140.7771]
[1739063609935,19.05009863,200.95,200.92,140.7771]
[1739063610353,19.05009863,200.93,200.92,140.7771]
[1739063611075,19.05009863,200.95,200.92,140.7771]
[1739063611859,19.05009863,200.96,200.92,140.7771]
[1739063612069,19.08009863,200.99,200.93,0.74634325]
[1739063612838,19.08009863,200.99,200.96,4.9761]
[1739063613038,0.03,200.99,200.96,5.72227578]
[1739063613969,0.03,200.99,200.96,141.52227578]
[1739063614141,0.03,200.99,200.96,140.7761]
[1739063618840,11.92401642,200.99,200.96,140.7761]
[1739063619277,11.89401642,200.98,200.96,140.7761]
[1739063620067,11.89401642,200.97,200.96,140.7761]
[1739063620259,11.89401642,200.98,200.96,140.7761]
[1739063620849,11.92401642,200.99,200.96,140.7761]
[1739063623170,11.89401642,200.97,200.96,140.7761]
[1739063624668,11.89401642,200.97,200.94,135.8]
[1739063624875,0.03,200.99,200.95,4.9763]
[1739063626275,11.89401642,200.96,200.95,4.9763]
[1739063630774,11.89401642,200.96,200.95,140.7763]
[1739063636485,11.89401642,200.96,200.95,223.7763]
[1739063637583,11.89401642,200.98,200.95,223.7763]
[1739063637885,11.89401642,200.98,200.96,0.74616985]
[1739063638088,11.92401642,200.99,200.97,4.9758]
[1739063638272,11.92401642,200.99,200.97,140.7758]
[1739063640093,11.89401642,200.98,200.97,140.7758]
[1739063640388,11.92401642,200.99,200.97,140.7758]
[1739063640588,0.03,200.99,200.98,0.7461321]
[1739063640788,0.03,201.0,200.98,219.5461321]
[1739063641091,0.03,201.0,200.98,218.8]
[1739063641269,0.03,201.0,200.99,0.7460328]
[1739063641664,0.0001,201.0,200.99,0.8715228]
[1739063641889,0.0001,201.0,200.99,136.5460328]
[1739063642184,0.0001,201.0,200.99,140.7753]
[1739063645496,0.0001,201.0,200.99,223.7753]
[1739063647090,0.0001,201.0,200.99,231.5085163]
[1739063648987,0.0001,201.0,200.99,223.7753]
[1739063649193,7.6078263,201.0,200.99,223.7753]
[1739063649377,0.0001,201.0,200.99,223.7753]
[1739063650593,11.89350418,201.0,200.99,223.7753]
[1739063650799,0.0001,201.0,200.99,223.7753]
[1739063651996,11.89350418,201.0,200.99,87.9753]
[1739063652595,11.89350418,201.0,200.99,4.9753]
[1739063653587,0.0001,201.0,200.99,4.9753]
[1739063654188,0.0001,201.0,200.96,0.74620466]
[1739063654380,0.0001,201.0,200.97,4.9758]
[1739063656892,11.89340418,200.99,200.97,4.9758]
[1739063657101,11.89340418,200.98,200.97,4.9758]
[1739063657294,11.89350418,201.0,200.97,140.7758]
[1739063657493,11.89340418,200.98,200.97,140.7758]
[1739063660182,11.89340418,200.99,200.97,140.7758]
[1739063660382,11.89340418,200.98,200.97,140.7758]
[1739063663318,11.89340418,200.98,200.95,4.9763]
[1739063663497,11.89340418,200.97,200.95,4.9763]
[1739063666620,11.89350418,201.0,200.95,18.16350207]
[1739063666821,0.0001,201.0,200.95,18.16350207]
[1739063667421,11.89350418,201.0,200.95,18.16350207]
[1739063668533,11.89340418,200.99,200.95,18.16350207]
[1739063668901,11.89340418,200.99,200.95,18.22650207]
[1739063669224,11.89340418,200.99,200.95,237.02650207]
[1739063669522,11.89350418,201.0,200.95,236.2802]
[1739063669902,11.89350418,201.0,200.97,4.9758]
[1739063670622,7.61193251,201.0,200.97,4.9758]
[1739063671513,7.61183251,200.98,200.97,4.9758]
[1739063672725,7.61183251,200.98,200.96,4.9761]
[1739063672902,7.61183251,200.97,200.96,4.9761]
[1739063673999,7.61183251,200.98,200.96,4.9761]
[1739063680322,7.61183251,200.97,200.96,4.9761]
[1739063680700,7.61183251,200.97,200.96,5.0391]
[1739063681406,7.61183251,200.98,200.96,5.0391]
[1739063691211,0.0001,201.0,200.96,17.4793]
[1739063691410,0.0001,201.0,200.97,0.7462319]
[1739063692931,0.0001,201.0,200.97,136.5462319]
[1739063693138,0.0001,201.0,200.98,4.9756]
[1739063698812,0.0001,201.0,200.98,140.7756]
[1739063700743,7.61183251,200.99,200.98,140.7756]
[1739063701743,0.0001,201.0,200.98,140.7756]
[1739063703141,0.0001,201.0,200.99,0.74610773]
[1739063703916,0.0001,201.0,200.98,223.7756]
[1739063704425,0.0001,201.0,200.99,0.74611136]
[1739063704943,0.0001,201.0,200.98,223.8386]
[1739063706344,0.0001,201.0,200.99,5.72142172]
[1739063707725,0.0001,201.0,200.99,141.52142172]
[1739063707919,0.0001,201.0,200.99,140.7753]
[1739063722050,0.0001,201.0,200.99,223.90079]
[1739063722357,0.0001,201.0,200.99,237.31263853]
[1739063723434,0.0001,201.0,200.99,244.92447104]
[1739063724151,0.03,201.07,201.03,20.12549]
[1739063724357,0.03,201.07,201.04,0.74581493]
[1739063725462,0.03,201.07,201.06,20.0]
[1739063726051,0.03,201.07,201.06,155.8]
[1739063726760,0.03,201.07,201.06,135.8]
[1739063726932,7.64183251,201.07,201.06,135.8]
[1739063727962,7.64183251,201.07,201.01,4.9748]
[1739063728138,7.61183251,201.03,201.01,4.9748]
[1739063729962,7.61183251,201.03,200.99,5.0383]
[1739063732661,7.61183251,201.02,200.99,5.0383]
[1739063733469,7.61183251,201.03,200.99,5.0383]
[1739063733670,7.61183251,201.04,200.99,5.0383]
[1739063734567,7.61183251,201.03,200.99,5.0383]
[1739063735763,15.67493251,201.05,200.99,17.4767]
[1739063736081,7.61183251,201.03,200.99,17.4767]
[1739063738079,7.61183251,201.04,200.99,17.4767]
[1739063739154,15.67493251,201.05,200.99,17.4767]
[1739063739954,7.61183251,201.05,200.99,17.4767]
[1739063740474,7.61183251,201.02,200.99,153.2767]
[1739063740887,7.61183251,201.03,200.99,153.2767]
[1739063741968,0.03,201.03,200.99,153.2767]
[1739063747385,7.61183251,201.02,200.99,153.2767]
[1739063747686,7.61183251,201.0,200.99,0.063]
[1739063747859,7.61183251,201.0,200.99,5.0383]
[1739063748601,7.61183251,201.01,200.99,5.0383]
[1739063748766,13.79483251,201.02,200.99,5.0383]
[1739063749888,13.79483251,201.02,200.99,0.063]
[1739063752592,0.03,201.03,200.99,144.22104728]
[1739063752768,0.03,201.03,201.0,8.35786804]
[1739063753085,0.03,201.03,201.02,20.0]
[1739063754575,0.03,201.03,201.02,24.9746]
[1739063757391,0.03,201.03,201.0,4.9751]
[1739063758389,0.03,201.03,201.0,140.7751]
[1739063760990,0.03,201.03,201.02,20.0]
[1739063761169,0.03,201.03,201.02,24.9746]
[1739063762691,0.03,201.03,201.01,4.9748]
[1739063764191,0.03,201.03,201.01,140.7748]
[1739063768095,7.61183251,201.02,201.0,0.063]
[1739063768271,7.61183251,201.01,201.0,0.063]
[1739063778215,7.64183251,201.03,201.0,0.063]
[1739063778518,0.03,201.03,201.0,7.67483251]
[1739063778816,0.03,201.03,201.0,0.063]
[1739063779202,0.03,201.03,201.0,135.863]
[1739063780510,0.03,201.03,201.01,4.9748]
[1739063781096,7.61183251,201.02,201.0,135.863]
[1739063781291,7.86281251,201.01,201.0,0.063]
[1739063782812,29.42426104,201.01,201.0,0.063]
[1739063783014,64.84639108,201.01,201.0,0.063]
[1739063783317,72.61926764,201.01,201.0,0.063]
[1739063783904,14.66282853,201.0,200.99,0.063]
[1739063784221,14.66282853,201.0,200.89,4.9776]
[1739063784222,21.25098,200.97,200.89,4.9776]
[1739063784521,0.25098,200.91,200.83,135.8]
[1739063784693,21.27466104,200.91,200.83,135.8]
[1739063785029,21.27466104,200.91,200.84,4.979]
[1739063785615,7.86281251,200.91,200.84,4.979]
[1739063785816,7.8496,200.96,200.9,7.67483251]
[1739063786908,7.8496,200.96,200.91,4.9773]
[1739063787218,7.8496,200.96,200.91,12.58913251]
[1739063787401,0.25098,200.99,200.93,7.61183251]
[1739063787914,7.86281251,200.99,200.92,7.61183251]
[1739063788319,7.61183251,200.97,200.91,17.4206]
[1739063788704,11.89837411,200.97,200.91,17.4206]
[1739063789221,11.89837411,200.94,200.91,4.9773]
[1739063789424,11.89837411,200.93,200.91,4.9773]
[1739063790124,11.89837411,200.94,200.91,4.9773]
[1739063790925,0.25098,200.96,200.91,4.9773]
[1739063790926,12.14935411,200.96,200.91,4.9773]
[1739063791431,12.14935411,200.96,200.91,5.0403]
[1739063792222,12.14935411,200.96,200.91,0.063]
[1739063792732,11.89837411,200.97,200.91,0.063]
[1739063793654,11.89837411,200.96,200.91,0.063]
[1739063794228,11.89837411,200.95,200.91,0.063]
[1739063794414,11.89837411,200.96,200.91,0.063]
[1739063795019,0.25098,200.96,200.91,0.063]
[1739063797137,13.66282853,200.94,200.91,0.063]
[1739063797337,11.89837411,200.95,200.91,0.063]
[1739063799235,12.14935411,200.95,200.91,0.063]
[1739063799439,11.89837411,200.93,200.91,0.063]
[1739063799635,12.14935411,200.92,200.91,0.063]
[1739063800939,25.56120264,200.92,200.91,0.063]
[1739063801512,31.88500264,200.92,200.91,0.063]
[1739063804619,0.25098,200.92,200.91,0.063]
[1739063806649,12.14935411,200.92,200.91,0.063]
[1739063811745,25.56120264,200.92,200.91,0.063]
[1739063811950,31.53830264,200.92,200.91,0.063]
[1739063812122,43.43667675,200.92,200.91,0.063]
[1739063812321,44.43667675,200.92,200.91,0.063]
[1739063812752,20.25098,200.88,200.8,4.98]
[1739063812950,7.62481156,200.82,200.8,4.98]
[1739063813947,7.62481156,200.82,200.79,0.063]
[1739063814128,7.62481156,200.85,200.79,0.063]
[1739063814658,11.91378347,200.85,200.79,0.063]
[1739063816647,11.91378347,200.85,200.79,5.0433]
[1739063818251,0.25098,200.85,200.79,5.0433]
[1739063818740,12.16476347,200.85,200.79,5.0433]
[1739063819551,12.03927347,200.85,200.79,5.0433]
[1739063820655,0.12549,200.85,200.79,16.95708347]
[1739063820956,12.03927347,200.85,200.79,5.0433]
[1739063823861,0.12549,200.84,200.79,5.0433]
[1739063824534,11.91378347,200.84,200.79,5.0433]
[1739063824840,11.91378347,200.82,200.79,5.0433]
[1739063825037,0.25098,200.81,200.79,5.0433]
[1739063825444,12.16476347,200.81,200.79,5.0433]
[1739063826060,12.16476347,200.8,200.79,0.063]
[1739063829844,0.25098,200.8,200.79,0.063]
[1739063830160,11.91378347,200.89,200.8,1.6438]
[1739063830461,0.03,200.9,200.83,20.0]
[1739063831196,0.03,200.9,200.85,11.91378347]
[1739063831458,0.03,200.9,200.86,4.9785]
[1739063832046,0.03,200.9,200.86,16.89228347]
[1739063832564,0.03,200.9,200.88,11.91378347]
[1739063832858,0.03,200.95,200.89,11.91378347]
[1739063833071,0.03,200.95,200.92,11.91378347]
[1739063833657,0.03,200.95,200.91,11.91378347]
[1739063834050,0.03,200.95,200.92,4.9771]
[1739063835265,0.03,200.95,200.92,16.89088347]
[1739063835567,0.03,200.95,200.91,11.91378347]
[1739063836764,0.03,200.95,200.92,11.91378347]
[1739063836967,0.03,200.95,200.93,4.9768]